[Event "21st Maccabiah GM 2022"]
[Site "?"]
[Date "2022.07.19"]
[Round "6.4"]
[White "Yarmonov, Igor"]
[Black "Smirin, Ilia"]
[Result "0-1"]
[ECO "E91"]
[WhiteElo "2372"]
[BlackElo "2601"]
[Annotator "TA"]
[PlyCount "82"]
[EventDate "2022.07.13"]
[EventType "tourn"]
[EventCountry "ISR"]
[SourceTitle "playchess.com"]
[Source "ChessBase"]
[SourceQuality "1"]
[TimeControl "40/5400+30:1800+30"]

{[%evp 11,82,41,39,21,60,36,40,35,65,33,47,41,66,19,15,17,28,0,0,0,0,0,0,0,0,-2,-8,-7,0,0,0,-3,14,16,25,26,18,21,13,0,0,0,0,0,29,0,48,15,19,0,9,9,14,-8,-8,-8,-8,-31,-11,-32,-33,-38,-35,-34,-35,-34,-32,-32,-32,-29968,-29969,-29969,-4133]} 1. d4 {[%emt 0:00:02]} Nf6 {[%emt 0:00:06]} 2. c4 {[%emt 0:00:18]} g6 {[%emt 0:00:29]} 3. Nc3 {[%emt 0:00:22]} Bg7 {[%emt 0:00:12]} 4. e4 {[%emt 0:00:29]} d6 {[%emt 0:00:08]} 5. Be2 {[%emt 0:11:39]} O-O {[%emt 0:00:22]} 6. Nf3 {[%emt 0:00:13]} Na6 {[%emt 0:01:23]} 7. a3 {[%emt 0:03:22] E91: King's Indian: Classical: 6 Be2, unusual replies including 6...c5 and 6...Bg4.} c5 {[%emt 0:03:20]} 8. d5 {[%emt 0:00:22]} e6 $5 {[%emt 0:00:53][%mdl 4] Leaves trodden paths.} 9. dxe6 {[%emt 0:00:23] White is slightly better.} Bxe6 {[%emt 0:00:14] [#]} 10. O-O $146 {[%emt 0:00:31]} ({Predecessor:} 10. Bf4 Re8 11. Qc2 Nh5 12. Bg5 Bf6 13. Be3 Bd7 14. O-O Bc6 15. Nd2 Ng7 16. Rad1 {1-0 (44) Szabo,M (2009)-Dehaybe,A (1940) LSS email 2008}) 10... Re8 {[%emt 0:00:13]} 11. Bf4 {[%emt 0:06:03]} Bg4 {[%emt 0:04:03]} 12. Nd2 {[%emt 0:04:26]} ({Reject} 12. Qxd6 Qxd6 13. Bxd6 Nxe4 14. Nxe4 Rxe4 $17) ({Much weaker is} 12. Bxd6 Nxe4 13. Nxe4 Rxe4 $15) (12. Qc2 $14) 12... Bxe2 $11 {[%emt 0:03:25]} 13. Qxe2 {[%emt 0:00:04]} Nc7 {[%emt 0:00:07]} 14. f3 {[%emt 0:09:40]} Ne6 {[%emt 0:01:44]} 15. Be3 {[%emt 0:00:04]} Nh5 {[%emt 0:03:23]} 16. Qd1 {[%emt 0:05:38]} a6 {[%emt 0:07:10]} 17. Rb1 {[%emt 0:00:35]} Rb8 {[%emt 0:01:52]} 18. a4 {[%emt 0:05:49]} Nhf4 {[%emt 0:01:45]} 19. Nb3 {[%emt 0:03:07]} Qg5 {[%emt 0:01:18][%csl Gf4][%cal Rg5g2] [#]} 20. Bxf4 {[%emt 0:05:09]} Nxf4 {[%emt 0:05:54][%csl Gf4][%cal Rg5g2]} 21. g3 {[%emt 0:00:04]} Nh5 {[%emt 0:04:03][%cal Oh5g3] aiming for ...Nxg3!} 22. Rf2 {[%emt 0:08:06]} b5 {[%emt 0:13:05]} 23. axb5 {[%emt 0:00:39]} Bxc3 {[%emt 0:00:07]} 24. bxc3 {[%emt 0:00:04] Na5 is the strong threat.} axb5 {[%emt 0:00:05]} 25. cxb5 {[%emt 0:01:23]} Rxb5 {[%emt 0:00:50]} 26. Nd2 {[%emt 0:00:07]} Rxb1 {[%emt 0:04:21]} 27. Qxb1 {[%emt 0:00:04]} Qe3 {[%emt 0:01:59]} 28. Qc2 {[%emt 0:01:57]} (28. Nc4 $5 {[%cal Rc4e3]} Qxc3 29. Nxd6 $14) 28... Ra8 {[%emt 0:01:21]} (28... Qg5 $11 {should be considered.}) 29. Nf1 {[%emt 0:01:49]} (29. Nc4 $5 {[%cal Rc4e3]} Ra1+ 30. Kg2 $14) 29... Qg5 {[%emt 0:02:34]} 30. Qd2 {[%emt 0:10:13]} Qe7 {[%emt 0:06:40]} 31. Ne3 {[%emt 0:03:35]} Nf6 {[%emt 0:00:14]} (31... Ra1+ {seems wilder.} 32. Kg2 Nf6 33. Nc4 Ne8) 32. Nd5 {[%emt 0:00:47]} Nxd5 {[%emt 0:01:26]} 33. Qxd5 {[%emt 0:00:13][%mdl 4096] Endgame KQR-KQR} Ra3 {[%emt 0:00:57]} 34. c4 {[%emt 0:01:11]} h5 {[%emt 0:01:21]} 35. h4 {[%emt 0:03:32]} Rc3 {[%emt 0:03:03]} 36. Kg2 {[%emt 0:00:50]} Qf6 {[%emt 0:03:34]} 37. f4 $1 {[%emt 0:05:32]} Qd4 {[%emt 0:00:58] Strongly threatening ...Qe3.} 38. Qxd4 {[%emt 0:04:59]} cxd4 {[%emt 0:00:03]} 39. f5 {[%emt 0:01:14]} d3 {[%emt 0:00:17] Threatens to win with ...Rc2.} 40. fxg6 $2 {[%emt 0:00:16][%mdl 8192] [#]} (40. Kf3 $15) 40... Rc2 $1 {[%emt 0:00:27]} 41. gxf7+ {[%emt 0:32:43]} Kf8 {[%emt 0:30:03] Weighted Error Value: White=0.30/Black=0.05 (flawless)} 0-1

[Event "21st Maccabiah GM 2022"]
[Site "?"]
[Date "2022.07.19"]
[Round "6.5"]
[White "Parkhov, Yair"]
[Black "Tzidkiya, Yeshaayahu"]
[Result "1-0"]
[ECO "E11"]
[WhiteElo "2468"]
[BlackElo "2419"]
[Annotator "TA"]
[PlyCount "53"]
[EventDate "2022.07.13"]
[EventType "tourn"]
[EventCountry "ISR"]
[SourceTitle "playchess.com"]
[Source "ChessBase"]
[SourceQuality "1"]
[TimeControl "40/5400+30:1800+30"]

{[%evp 9,53,24,42,31,44,34,41,31,40,13,47,47,45,29,90,68,77,81,110,110,110,110,110,110,106,128,173,178,172,172,165,164,201,195,215,210,307,316,318,296,308,300,757,738,29997,29998]} 1. d4 {[%emt 0:00:10]} Nf6 {[%emt 0:02:58]} 2. c4 {[%emt 0:00:30]} e6 {[%emt 0:00:30]} 3. Nf3 {[%emt 0:00:30]} Bb4+ {[%emt 0:00:30]} 4. Bd2 {[%emt 0:00:30]} a5 {[%emt 0:00:30]} 5. a3 {[%emt 0:00:30]} Be7 {[%emt 0:00:30]} 6. Nc3 {[%emt 0:00:30] E11: Bogo-Indian.} d5 {[%emt 0:00:30] Against e4} 7. Bf4 {[%emt 0:00:30]} O-O {[%emt 0:00:30]} 8. e3 {[%emt 0:00:30] White is slightly better.} b6 {[%emt 0:00:30]} 9. cxd5 {[%emt 0:00:30]} exd5 {[%emt 0:00:30] [#]} 10. Bd3 $146 {[%emt 0:00:30]} ({Predecessor:} 10. Rc1 c5 11. Bb5 Bb7 12. Ne5 Ne8 13. h4 Nc7 14. Bd3 Ne6 15. Qg4 Nxf4 16. Qxf4 {½-½ (30) Krysa,L (2531)-Cramling,P (2452) Gibraltar 2022}) 10... Ba6 {[%emt 0:00:30]} 11. O-O {[%emt 0:00:30]} c5 {[%emt 0:00:30]} (11... Bxd3 $11 {keeps the balance.} 12. Qxd3 c6) 12. Bxa6 {[%emt 0:00:30] 0x0.001e39dad8badp-1022s more active pieces. Black is on the road to losing.} Nxa6 {[%emt 0:00:30]} 13. Qb3 {[%emt 0:00:30]} Bd6 {[%emt 0:00:30]} 14. Be5 {[%emt 0:00:30]} c4 {[%emt 0:00:30]} 15. Qb5 {[%emt 0:00:30] Black must now prevent Bxf6.} Nc7 {[%emt 0:00:30]} 16. Qxb6 {[%emt 0:00:30]} Ra6 {[%emt 0:00:30]} 17. Qb7 {[%emt 0:00:30]} Qd7 {[%emt 0:00:30]} 18. Bxf6 {[%emt 0:00:30]} Rfa8 {[%emt 0:00:30] [#]} 19. Ne5 $1 {[%emt 0:00:30][%cal Bf3e5,Be5f7,Bf7h6][%mdl 32]} (19. Nxd5 R6a7 20. Qxa8+ (20. Nb6 Qe6 $14) 20... Nxa8 $16) 19... Qe6 {[%emt 0:00:30] [#]} 20. e4 $1 {[%emt 0:00:30] Threatens to win with Bh4.} gxf6 {[%emt 0:00:30]} (20... R6a7 21. Qc6) 21. exd5 {[%emt 0:00:30]} ({And not} 21. Nxd5 R6a7 22. Nxc7 Bxc7 $17) 21... Nxd5 {[%emt 0:00:30]} 22. Nxf7 {[%emt 0:00:30]} ({But not} 22. Qxd5 $6 Qxd5 23. Nxd5 fxe5 $16) ({Weaker is} 22. Nxc4 Nxc3 23. bxc3 Qxc4 $19) 22... Nxc3 {[%emt 0:00:30]} (22... Qxf7 $142 23. Qxd5 Rb8) 23. Nh6+ $18 {[%emt 0:00:30]} Kh8 {[%emt 0:00:30] aiming for ...Ne2+.} 24. bxc3 {[%emt 0:00:30]} Bf4 {[%emt 0:00:30]} 25. Rfe1 {[%emt 0:00:30]} Qb6 $2 {[%emt 0:00:30] [#]} (25... Qc8 26. Nf7+ Kg7) 26. Qf7 $1 {[%emt 0:00:30] White threatens Re8+ and mate.} Bxh6 {[%emt 0:00:30]} (26... Qd8 27. Re7) 27. Re7 {[%emt 0:00:30] Weighted Error Value: White=0.05 (flawless) /Black=0.54} 1-0

[Event "21st Maccabiah GM 2022"]
[Site "?"]
[Date "2022.07.19"]
[Round "6.8"]
[White "Berenboym, Igor"]
[Black "Kirsch, Yahel David"]
[Result "1-0"]
[ECO "B23"]
[WhiteElo "2097"]
[BlackElo "1626"]
[Annotator "TA"]
[PlyCount "93"]
[EventDate "2022.07.13"]
[EventType "tourn"]
[EventCountry "ISR"]
[SourceTitle "playchess.com"]
[Source "ChessBase"]
[SourceQuality "1"]
[TimeControl "40/5400+30:1800+30"]

{[%evp 9,93,14,21,20,16,15,13,13,28,0,0,-29,2,4,14,0,0,0,2,7,28,12,71,67,62,68,152,159,158,0,0,0,0,0,0,0,0,0,69,0,0,0,0,0,0,0,70,54,62,53,39,-21,-39,-28,133,144,664,697,710,679,1390,1337,1538,1370,1281,825,824,794,1516,1523,2018,1057,3118,2097,29940,4941,5090,4941,4949,4818,4949,4949,29984,29985,29985,29986]} 1. e4 {[%emt 0:00:15]} c5 {[%emt 0:00:05]} 2. Nc3 {[%emt 0:00:30]} a6 {[%emt 0:00:30]} 3. g3 {[%emt 0:00:30]} Nc6 {[%emt 0:00:30]} 4. Bg2 {[%emt 0:00:30]} d6 {[%emt 0:00:30]} 5. d3 {[%emt 0:00:30]} g6 {[%emt 0:00:30]} 6. f4 {[%emt 0:00:30] B23: Closed Sicilian: Lines without g3.} Bg7 {[%emt 0:00:30]} 7. Nf3 {[%emt 0:00:30]} Rb8 {[%emt 0:00:30]} 8. O-O {[%emt 0:00:30] The position is equal.} b5 {[%emt 0:00:30] [#]} 9. f5 $146 {[%emt 0:00:30]} ({Predecessor:} 9. a3 e6 10. h3 Nge7 11. Ne2 Qb6 12. Kh2 O-O 13. Rb1 d5 14. e5 d4 15. g4 {0-1 (32) Peycheva,G (1654)-Spassov,L (2322) Albena 2014}) 9... Nf6 {[%emt 0:00:30]} 10. h3 {[%emt 0:00:30]} O-O {[%emt 0:00:30]} 11. g4 {[%emt 0:00:30]} Bb7 {[%emt 0:00:30]} 12. Qe1 {[%emt 0:00:30]} (12. a3 {looks sharper.} d5 13. g5 Nh5 14. Nxd5 Nd4 15. f6) 12... Nd4 {[%emt 0:00:30]} 13. Nxd4 {[%emt 0:00:30]} cxd4 {[%emt 0:00:30]} 14. Ne2 {[%emt 0:00:30]} Qb6 {[%emt 0:00:30]} 15. Qf2 {[%emt 0:00:30]} Nd7 {[%emt 0:00:30]} (15... Qc5 $11 {remains equal.}) 16. Bg5 $16 {[%emt 0:00:30]} Rbe8 {[%emt 0:00:30]} 17. Qh4 {[%emt 0:00:30] Prevents h6.} Qc5 {[%emt 0:00:30]} (17... f6 $14 18. Bd2 e5) 18. Bxe7 {[%emt 0:00:30]} Rxe7 {[%emt 0:00:30] [#]} 19. Qxe7 $2 {[%emt 0:00:30]} (19. fxg6 $1 $16 hxg6 20. Qxe7) 19... Bf6 $1 $11 {[%emt 0:00:30]} 20. Qxd7 {[%emt 0:00:30]} Bc8 {[%emt 0:00:30] This bishop pair is nice.} 21. b4 $1 {[%emt 0:00:30]} Qb6 {[%emt 0:00:30]} 22. Qxc8 {[%emt 0:00:30]} Rxc8 {[%emt 0:00:30]} 23. fxg6 {[%emt 0:00:30]} Bg5 {[%emt 0:00:30]} (23... Be5 $1 $11 24. gxh7+ (24. gxf7+ Kf8 $11) (24. Rxf7 hxg6 25. Raf1 Qd8 $15) 24... Kxh7) 24. gxf7+ {[%emt 0:00:30]} (24. gxh7+ $1 $14 Kh8 25. Rxf7) 24... Kf8 {[%emt 0:00:30]} 25. Rf5 {[%emt 0:00:30]} Be3+ {[%emt 0:00:30]} 26. Kh1 {[%emt 0:00:30]} Rxc2 {[%emt 0:00:30]} 27. Ng3 {[%emt 0:00:30] aiming for Raf1.} Qd8 {[%emt 0:00:30]} (27... Qc6 $11 28. Nh5 Qc3) 28. e5 {[%emt 0:00:30]} dxe5 {[%emt 0:00:30]} 29. Raf1 $36 {[%emt 0:00:30][%mdl 2048] White has good play. The board is on fire.} Bf4 {[%emt 0:00:30]} 30. Nh5 {[%emt 0:00:30]} ({Better is} 30. Ne4 $14 h6 31. Rf6) 30... Qh4 {[%emt 0:00:30]} 31. Ng7 {[%emt 0:00:30] [#] White threatens Ne6+ and mate.} ({Don't blunder} 31. Nxf4 $2 exf4 32. Rc5 Rf2 $19) 31... Qh6 {[%emt 0:00:30] Inhibits Ne6+.} ({Black should play} 31... Rc6 $1 $11 32. Nh5 Rc2) 32. Nh5 $16 {[%emt 0:00:30][%cal Rh5f4] White is more active.} Bg5 {[%emt 0:00:30][%mdl 8192] Loses the game.} (32... Rc8 $16 33. a3 (33. Nxf4 exf4 34. R1xf4 Rc1+ 35. Kh2 Rd1 $16) 33... Rc2) 33. Rxe5 $18 {[%emt 0:00:30][%csl Gf7][%cal Re5e8]} Be7 {[%emt 0:00:30]} 34. Nf4 {[%emt 0:00:30][%cal Og4g5] Hoping for g5!} Bf6 {[%emt 0:00:30] Against g5} 35. g5 {[%emt 0:00:30]} Bxe5 {[%emt 0:00:30]} 36. gxh6 {[%emt 0:00:30] White wants to mate with Ne6+.} Kxf7 {[%emt 0:00:30]} 37. Bd5+ {[%emt 0:00:30]} Ke7 {[%emt 0:00:30]} 38. Be4 {[%emt 0:00:30]} Kd6 {[%emt 0:00:30]} 39. Bxh7 {[%emt 0:00:30]} Rxa2 {[%emt 0:00:30]} 40. Be4 {[%emt 0:00:30] Strongly threatening h7.} a5 {[%emt 0:00:30]} 41. bxa5 {[%emt 0:30:30] Black must now prevent Ng6.} b4 {[%emt 0:30:30]} 42. h7 {[%emt 0:00:30]} (42. Ng6 $142 Rxa5 43. h7 Bg7 44. Rf7 Bh8 45. Nxh8 Rh5 46. Ng6 Rxh3+ 47. Kg2) 42... b3 {[%emt 0:00:30]} 43. Bd5 {[%emt 0:00:30]} Rxa5 {[%emt 0:00:30]} 44. Bxb3 {[%emt 0:00:30]} Ra8 {[%emt 0:00:30]} 45. Ng6 {[%emt 0:00:30]} Bh8 {[%emt 0:00:30]} 46. Nxh8 {[%emt 0:00:30]} Rxh8 {[%emt 0:00:30]} 47. Bg8 {[%emt 0:00:30] Weighted Error Value: White=0.22 (precise) /Black=0.66} 1-0

[Event "21st Maccabiah GM 2022"]
[Site "?"]
[Date "2022.07.20"]
[Round "7.1"]
[White "Tzidkiya, Yeshaayahu"]
[Black "Dvoirys, Semen I."]
[Result "1/2-1/2"]
[ECO "B95"]
[WhiteElo "2419"]
[BlackElo "2439"]
[Annotator "TA"]
[PlyCount "78"]
[EventDate "2022.07.13"]
[EventType "tourn"]
[EventCountry "ISR"]
[SourceTitle "playchess.com"]
[Source "ChessBase"]
[SourceQuality "1"]
[TimeControl "40/5400+30:1800+30"]

{[%evp 15,78,0,20,1,149,48,170,18,17,12,27,34,16,31,63,0,0,7,3,16,82,79,53,65,76,86,85,82,87,89,88,97,84,103,120,110,106,100,145,128,136,113,124,72,73,3,14,22,50,22,20,0,31,0,0,0,0,0,0,0,0,0,0,0,0]} 1. e4 {[%emt 0:05:21]} c5 2. Nf3 {[%emt 0:00:30]} d6 3. d4 {[%emt 0:00:30]} cxd4 4. Nxd4 {[%emt 0:00:30]} Nf6 5. Nc3 {[%emt 0:00:30]} a6 6. Bg5 {[%emt 0:00:30]} e6 7. f3 {[%emt 0:00:30]} Be7 8. Qd2 {[%emt 0:00:30]} Nbd7 9. Be2 {[%emt 0:00:30] B95: Sicilian Najdorf: 6 Bg5 e6, unusual White 7th moves.} b5 {[#]} (9... h6 $11 10. Be3 Qc7) 10. a4 $146 {[%emt 0:00:30]} (10. Nc6 $16 Qc7 11. Nxe7 Kxe7 12. a3) ({Predecessor:} 10. Nc6 Qc7 11. Nxe7 Kxe7 12. f4 Bb7 13. Bf3 Rhe8 14. Rd1 Rad8 15. e5 dxe5 16. Bxb7 Qxb7 17. Qd6# {1-0 (17) Trakru,P (1911)-Robles Ortiz,C (1526) Toronto 2013}) 10... bxa4 (10... b4 $14 11. Na2 h6) 11. Rxa4 $2 {[%emt 0:00:30]} (11. Nc6 $18 Qc7 12. Nxe7 Kxe7 13. Rxa4) 11... Bb7 $11 12. O-O {[%emt 0:00:30][%cal Bh1f1,Bf1a1,Ba1a3][%mdl 32]} O-O 13. Rfa1 {[%emt 0:00:30][%cal Re2a6]} Nc5 {[%emt 0:27:36]} 14. R4a3 $36 {[%emt 0:00:30][%mdl 2048] White has good play.} Qb6 {[%emt 0:00:30]} 15. Be3 {[%emt 0:00:30]} ({White should play} 15. b4 $14) 15... Qxb2 {[%emt 0:00:30]} 16. Na4 {[%emt 0:00:30]} Nxa4 {[%emt 0:00:30]} 17. Rxa4 {[%emt 0:00:30] And now R4a2 would win.} Rfc8 {[%emt 0:00:30] [#]} (17... d5 $11 {keeps the balance.}) 18. R1a3 $1 $16 {[%emt 0:00:30]} Qb6 {[%emt 0:00:30] [#] Hoping for ...d5.} 19. Nxe6 $1 {[%emt 0:00:30]} Qc6 {[%emt 0:00:30]} 20. Nd4 {[%emt 0:00:30]} Qc7 {[%emt 0:00:30]} 21. Bxa6 {[%emt 0:00:30]} Rxa6 {[%emt 0:00:30]} 22. Rxa6 {[%emt 0:00:30]} d5 {[%emt 0:00:30]} 23. Bf4 {[%emt 0:00:30]} Qd7 {[%emt 0:00:30]} 24. e5 {[%emt 0:00:30]} Ne8 {[%emt 0:00:30]} 25. Ra7 {[%emt 0:00:30]} Bxa3 {[%emt 0:00:30]} 26. Rxa3 {[%emt 0:00:30]} Ra8 {[%emt 0:00:30]} 27. Rxa8 {[%emt 0:00:30]} Bxa8 {[%emt 0:00:30]} 28. Qa5 {[%emt 0:00:30]} Bb7 {[%emt 0:00:30]} 29. g4 {[%emt 0:00:30]} (29. h3 $142) 29... Nc7 {[%emt 0:00:30]} 30. Nf5 {[%emt 0:00:30]} (30. Be3 $16) 30... Ne6 {[%emt 0:00:30]} 31. Bd2 {[%emt 0:00:30]} d4 {[%emt 0:00:30]} 32. Kf2 {[%emt 0:00:30]} (32. Qa7 $5 {[%cal Ra7b8]} Qc7 33. Qa4 $16 (33. Nxd4 Nxd4 34. Qxd4 Bxf3 $11)) 32... h5 {[%emt 0:00:30]} 33. h3 {[%emt 0:00:30]} Kh7 {[%emt 0:00:30] ...Qc6 is the strong threat.} 34. Nd6 {[%emt 0:00:30]} ({Worse is} 34. gxh5 Qc6 35. Nh4 Qxc2 $17) 34... Qc6 {[%emt 0:00:30][%csl LRc2,LRf3] The position is equal.} 35. Nxb7 {[%emt 0:00:30] Active counter play!} hxg4 {[%emt 0:00:30]} 36. hxg4 {[%emt 0:00:30]} Qxb7 {[%emt 0:00:30]} 37. Qa3 {[%emt 0:00:30]} Qb1 {[%emt 0:00:30]} 38. Qb3 {[%emt 0:00:30]} Qh1 {[%emt 0:00:30]} 39. Qd3+ {[%emt 0:00:30]} Kg8 {[%emt 0:00:30] Weighted Error Value: White=0.25 (precise) /Black=0.27 (precise)} 1/2-1/2

[Event "21st Maccabiah GM 2022"]
[Site "?"]
[Date "2022.07.20"]
[Round "7.2"]
[White "Smirin, Ilia"]
[Black "Parkhov, Yair"]
[Result "1-0"]
[ECO "A13"]
[WhiteElo "2601"]
[BlackElo "2468"]
[Annotator "TA"]
[PlyCount "81"]
[EventDate "2022.07.13"]
[EventType "tourn"]
[EventCountry "ISR"]
[SourceTitle "playchess.com"]
[Source "ChessBase"]
[SourceQuality "1"]
[TimeControl "40/5400+30:1800+30"]

{[%evp 10,81,42,26,22,-47,-30,-33,-27,-27,51,-25,-32,-21,-19,-32,0,-1,39,38,51,46,33,31,33,49,34,38,33,22,40,40,83,81,83,88,79,81,91,81,78,78,181,169,189,172,177,169,292,289,467,465,718,705,768,831,837,785,2957,565,575,544,504,503,488,493,455,455,520,527,502,448,387,387]} 1. c4 {[%emt 0:12:35]} e6 {[%emt 0:05:10]} 2. g3 {[%emt 0:00:30]} d5 {[%emt 0:00:30]} 3. Bg2 {[%emt 0:00:30]} Nf6 {[%emt 0:00:30]} 4. Nf3 {[%emt 0:00:30]} d4 {[%emt 0:00:30]} 5. O-O {[%emt 0:00:30]} Nc6 {[%emt 0:00:30]} 6. d3 {[%emt 0:00:30]} Bc5 {[%emt 0:00:30] is now debated instead of 6...Be7. A13: English Opening: 1...e6.} 7. e4 $5 {[%emt 0:00:30][%mdl 4] [#] Exploring less charted territory.} (7. Nbd2 $11) 7... e5 $146 {[%emt 0:00:30]} ({Predecessor:} 7... dxe3 8. Bxe3 Nd4 9. Nbd2 O-O 10. Rb1 a5 11. Re1 Nxf3+ 12. Nxf3 Bxe3 13. fxe3 c5 14. d4 {½-½ (49) Medvegy,Z (2539)-Margl,R (2264) Ajka 2019}) 8. Na3 {[%emt 0:00:30]} h6 {[%emt 0:00:30] Black is slightly better.} 9. Nc2 {[%emt 0:00:30][%cal Ob2b4]} O-O {[%emt 0:00:30]} ({Black should play} 9... a5 $11) 10. a3 {[%emt 0:00:30]} (10. b4 $1 $14 Nxb4 11. Nxb4 Bxb4 12. Nxe5) 10... a5 $11 {[%emt 0:00:30]} 11. b3 {[%emt 0:00:30]} Bg4 {[%emt 0:00:30]} 12. Rb1 {[%emt 0:00:30]} Qe7 {[%emt 0:00:30]} 13. Qd2 {[%emt 0:00:30]} b6 {[%emt 0:00:30]} 14. Nh4 {[%emt 0:00:30]} Bd6 {[%emt 0:00:30]} 15. f4 {[%emt 0:00:30]} Bd7 {[%emt 0:00:30]} 16. Nf5 {[%emt 0:00:30]} Bxf5 {[%emt 0:00:30]} 17. exf5 {[%emt 0:00:30]} Qd7 {[%emt 0:00:30]} 18. fxe5 {[%emt 0:00:30]} Bxe5 {[%emt 0:00:30]} 19. Qd1 {[%emt 0:00:30]} Rae8 {[%emt 0:00:30]} 20. Qf3 $36 {[%emt 0:00:30][%mdl 2048] White is more active.} Nd8 {[%emt 0:00:30]} 21. b4 {[%emt 0:00:30] Black is on the road to losing.} axb4 {[%emt 0:00:30]} 22. axb4 {[%emt 0:00:30]} c6 {[%emt 0:00:30]} 23. b5 {[%emt 0:00:30][%cal Rb5c6]} c5 {[%emt 0:00:30]} 24. Ra1 {[%emt 0:00:30]} Re7 {[%emt 0:00:30]} 25. g4 {[%emt 0:00:30]} Rfe8 {[%emt 0:00:30] [#]} (25... Qd6 $16) 26. g5 $1 $18 {[%emt 0:00:30]} hxg5 {[%emt 0:00:30]} 27. Bxg5 {[%emt 0:00:30]} Qd6 {[%emt 0:00:30]} 28. Qh3 {[%emt 0:00:30]} Nb7 {[%emt 0:00:30]} (28... Rc7 $142 29. Ra6 Nh7) 29. Qh4 {[%emt 0:00:30]} Na5 $2 {[%emt 0:00:30] [#]} (29... Rd7 30. Rf3 Kf8 31. Qh8+ Ng8) 30. Rf3 $1 {[%emt 0:00:30][%cal Bf1f3,Bf3h3,Bh3h2][%mdl 32] Strongly threatening Rh3.} Bxh2+ {[%emt 0:00:30]} (30... Rd7 $142 31. Re1 (31. Rh3 Kf8 $18) 31... Bxh2+ 32. Qxh2 Rxe1+ 33. Nxe1 Qxh2+ 34. Kxh2 Nh7) 31. Kh1 {[%emt 0:00:30] Threatens to win with Rh3.} Re2 {[%emt 0:00:30]} 32. Rh3 {[%emt 0:00:30][%csl Gh3][%cal Rh4h8]} Kf8 {[%emt 0:00:30]} 33. Rxh2 {[%emt 0:00:30] Black must now prevent Qh8+.} Nb3 {[%emt 0:00:30]} 34. Bxf6 {[%emt 0:00:30]} (34. Qh8+ $142 Ke7 35. Ra7+ Kd8 36. Bxf6+ Qxf6 37. Ra8+ Kc7 38. Rxe8 Rxe8 39. Qxe8) 34... Qxf6 {[%emt 0:00:30]} 35. Qxf6 {[%emt 0:00:30]} gxf6 {[%emt 0:00:30]} 36. Rh8+ {[%emt 0:00:30]} Kg7 {[%emt 0:00:30]} 37. Rxe8 {[%emt 0:00:30]} Rxe8 {[%emt 0:00:30]} 38. Re1 {[%emt 0:00:30]} Rh8+ {[%emt 0:00:30]} 39. Kg1 {[%emt 0:00:30]} Rh5 {[%emt 0:00:30]} 40. Be4 {[%emt 0:00:30]} Nd2 {[%emt 0:00:30]} 41. Kg2 {[%emt 0:30:30] Weighted Error Value: White=0.30/Black=0.31} 1-0

[Event "21st Maccabiah GM 2022"]
[Site "?"]
[Date "2022.07.20"]
[Round "7.3"]
[White "Kobo, Ori"]
[Black "Yarmonov, Igor"]
[Result "1-0"]
[ECO "B11"]
[WhiteElo "2534"]
[BlackElo "2372"]
[Annotator "TA"]
[PlyCount "32"]
[EventDate "2022.07.13"]
[EventType "tourn"]
[EventCountry "ISR"]
[SourceTitle "playchess.com"]
[Source "ChessBase"]
[SourceQuality "1"]
[TimeControl "40/5400+30:1800+30"]

{[%evp 9,32,33,44,56,62,47,87,93,90,81,104,95,109,101,100,93,112,88,140,82,72,40,83,89,87]} 1. e4 c6 2. Nf3 d5 3. Nc3 dxe4 4. Nxe4 Nf6 5. Qe2 e6 6. Nxf6+ {B11: Caro-Kann: Two Knights Variation.} Qxf6 7. d4 Bd6 8. Bg5 Qf5 9. Qd2 {[#] aiming for Bd3.} Qe4+ 10. Be3 {[#]} ({Much less strong is} 10. Qe2 Qxe2+ 11. Bxe2 O-O $11) 10... b6 $146 ({Predecessor:} 10... Na6 11. a3 f6 12. Bd3 Qd5 13. c4 Qh5 14. Bf4 Bxf4 15. Qxf4 Qa5+ 16. Nd2 Qc7 {1-0 (28) Michelakos,P (2265)-Sidiropoulos,N (2177) Athens 2021}) 11. c4 Na6 {White must now prevent ...Bb4.} 12. a3 {Against Bb4. Strongly threatening Bd3.} c5 13. Bd3 Qb7 (13... Qc6 $142) 14. Qc2 {White is more active.} (14. Rd1 $142) 14... f5 $16 15. d5 O-O {[#]} 16. dxe6 $1 {[%emt 0:13:33]} Bxe6 {[%emt 0:17:37] Weighted Error Value: White=0.10 (very precise) /Black=0.19 (very precise)} 1-0